bitfinex/quotes_SOLUSD_20220211
["timestamp","ask_amount","ask_price","bid_price","bid_amount"]
[1644547735167,24.2754,104.86,104.76,4.769]
[1644547735369,4.769,104.85,104.76,4.769]
[1644547735567,38.13276506,104.84,104.76,4.769]
[1644547735770,38.98979169,104.82,104.76,4.769]
[1644547735967,53.31349169,104.82,104.76,4.769]
[1644547736167,43.51211604,104.8,104.73,98.11856515]
[1644547736566,43.51211604,104.8,104.73,98.36856515]
[1644547736968,43.51211604,104.8,104.74,1.73362058]
[1644547738370,43.51211604,104.8,104.74,1.98362058]
[1644547740672,43.51211604,104.8,104.75,1.73362058]
[1644547741272,49.51211604,104.8,104.75,1.73362058]
[1644547743273,49.51211604,104.8,104.75,1.98362058]
[1644547744073,49.51211604,104.8,104.75,1.73362058]
[1644547745276,43.51211604,104.8,104.75,1.73362058]
[1644547747876,49.51211604,104.8,104.75,1.73362058]
[1644547748177,43.51211604,104.8,104.75,1.73362058]
[1644547748376,49.51211604,104.8,104.75,1.73362058]
[1644547750381,49.51211604,104.8,104.73,0.024]
[1644547750382,63.83791604,104.8,104.73,0.024]
[1644547750579,27.8941,104.79,104.73,0.024]
[1644547750979,27.8941,104.79,104.7,0.024]
[1644547751179,39.0241,104.79,104.68,0.024]
[1644547751379,14.3336,104.75,104.67,0.024]
[1644547752383,34.90133611,104.74,104.67,0.024]
[1644547752582,54.01233611,104.74,104.67,0.024]
[1644547752784,49.23733611,104.74,104.67,0.024]
[1644547752983,4.775,104.73,104.65,4.799]
[1644547753784,34.75533608,104.72,104.65,4.799]
[1644547753985,41.76419991,104.7,104.65,0.024]
[1644547754286,41.76419991,104.7,104.63,0.024]
[1644547754287,56.10529991,104.7,104.63,0.024]
[1644547754588,60.88229991,104.7,104.63,0.024]
[1644547754788,62.10529991,104.7,104.63,0.024]
[1644547754987,71.77829991,104.7,104.63,0.024]
[1644547756386,71.77829991,104.7,104.61,0.024]
[1644547756986,47.76419991,104.7,104.61,40.58790464]
[1644547757189,47.76419991,104.7,104.62,4.801]
[1644547757389,47.76419991,104.7,104.63,16.32934534]
[1644547757589,47.76419991,104.7,104.62,6.78462058]
[1644547757792,52.54119991,104.7,104.62,0.024]
[1644547757988,47.76419991,104.7,104.61,0.024]
[1644547758793,62.10529991,104.7,104.61,20.79421068]
[1644547758993,47.76419991,104.7,104.62,0.024]
[1644547759191,47.76419991,104.7,104.63,40.9000393]
[1644547759390,47.76419991,104.7,104.63,42.63365988]
[1644547759792,47.76419991,104.7,104.63,6.51062058]
[1644547759995,47.76419991,104.7,104.63,1.73362058]
[1644547761209,62.10489991,104.7,104.63,1.73362058]
[1644547761615,62.10489991,104.7,104.62,0.024]
[1644547761809,4.777,104.69,104.62,1.75762058]
[1644547762610,40.61412196,104.68,104.62,1.75762058]
[1644547762810,40.61412196,104.68,104.62,1.73362058]
[1644547763611,46.61412196,104.68,104.62,1.73362058]
[1644547764412,46.61412196,104.68,104.61,0.024]
[1644547764613,4.777,104.67,104.61,0.024]
[1644547764811,4.777,104.67,104.58,0.024]
[1644547765411,36.66283712,104.66,104.58,0.024]
[1644547765618,49.69605239,104.64,104.56,0.024]
[1644547765811,49.69605239,104.64,104.55,0.024]
[1644547766011,54.47605239,104.64,104.55,0.024]
[1644547767214,54.47605239,104.64,104.55,4.804]
[1644547767415,54.47605239,104.64,104.56,0.024]
[1644547768919,54.47605239,104.64,104.54,0.024]
[1644547769523,14.3541,104.61,104.53,0.024]
[1644547769723,46.68995748,104.6,104.53,0.024]
[1644547771922,51.47095748,104.6,104.53,0.024]
[1644547772121,65.82625748,104.6,104.52,4.78]
[1644547772322,61.04525748,104.6,104.52,4.78]
[1644547772523,4.781,104.59,104.52,4.78]
[1644547772926,48.43488417,104.58,104.52,4.78]
[1644547773130,36.48188235,104.56,104.52,4.78]
[1644547775038,55.62448235,104.56,104.52,4.78]
[1644547775231,50.84248235,104.56,104.52,4.78]
[1644547779336,50.84248235,104.56,104.49,14.5301]
[1644547779537,50.84248235,104.56,104.49,14.7801]
[1644547779739,56.84248235,104.56,104.49,14.7801]
[1644547780862,42.48188235,104.56,104.5,37.59145145]
[1644547781065,36.48188235,104.56,104.5,37.59145145]
[1644547781264,36.48188235,104.56,104.5,43.84145145]
[1644547781465,36.48188235,104.56,104.5,45.57513847]
[1644547781662,36.48188235,104.56,104.5,43.84145145]
[1644547782163,36.48188235,104.56,104.51,4.783]
[1644547782363,36.48188235,104.56,104.51,5.033]
[1644547783862,48.0558,104.58,104.51,5.033]
[1644547784464,48.0558,104.58,104.51,0.25]
[1644547784865,42.44517624,104.57,104.5,52.19585145]
[1644547786268,42.44517624,104.57,104.5,14.6044]
[1644547786466,42.44517624,104.57,104.49,14.5301]
[1644547786667,47.22817624,104.57,104.49,20.7801]
[1644547786868,47.22817624,104.57,104.49,14.7801]
[1644547787465,53.22817624,104.57,104.5,0.024]
[1644547787667,48.44517624,104.57,104.5,0.024]
[1644547788070,4.783,104.56,104.5,0.024]
[1644547788269,4.783,104.56,104.48,0.024]
[1644547788571,4.783,104.56,104.46,0.024]
[1644547788572,14.362,104.55,104.46,0.024]
[1644547788769,4.784,104.54,104.44,0.024]
[1644547788969,43.79202561,104.53,104.44,39.64388442]
[1644547789270,43.79202561,104.53,104.45,4.808]
[1644547789573,43.79202561,104.53,104.46,0.024]
[1644547789769,43.79202561,104.53,104.46,17.297432]
[1644547789970,43.79202561,104.53,104.47,0.024]
[1644547791177,49.79202561,104.53,104.47,0.024]
[1644547792778,64.15592561,104.53,104.47,0.024]
[1644547792977,64.15592561,104.53,104.45,0.024]
[1644547793378,64.15592561,104.53,104.45,1.75768702]
[1644547793577,64.15592561,104.53,104.46,0.024]
[1644547793782,68.93992561,104.53,104.46,0.024]
[1644547796384,91.96822561,104.53,104.46,0.024]
[1644547797382,91.96822561,104.53,104.46,0.004]
[1644547797583,91.96822561,104.53,104.43,49.32179325]
[1644547797784,103.09822561,104.53,104.42,1.35259325]
[1644547797984,103.09822561,104.53,104.42,6.0]
[1644547798181,105.32944715,104.53,104.41,7.35259325]
[1644547798585,105.32944715,104.53,104.41,6.0]
[1644547798782,115.67344715,104.53,104.41,6.0]
[1644547798986,115.67344715,104.53,104.4,17.45558027]
[1644547798987,115.67344715,104.53,104.4,23.45558027]
[1644547799384,131.65418148,104.53,104.4,17.45558027]
[1644547799584,243.59332836,104.53,104.4,1.35259325]
[1644547799784,14.3747,104.49,104.39,1.35259325]
[1644547799985,15.917,104.48,104.38,6.47883385]
[1644547800186,15.917,104.48,104.38,0.47883385]
[1644547800384,23.6712,104.47,104.38,0.47883385]
[1644547800684,4.788,104.46,104.38,0.47883385]
[1644547800886,12.854,104.46,104.38,0.47883385]
[1644547801087,61.57055494,104.45,104.38,0.47883385]
[1644547801287,4.788,104.44,104.38,0.47883385]
[1644547802089,14.3778,104.43,104.35,4.787]
[1644547802288,47.2217553,104.41,104.35,4.787]
[1644547802495,41.28947347,104.39,104.35,4.787]
[1644547802889,41.28947347,104.39,104.32,1.73368702]
[1644547803590,41.28947347,104.39,104.32,7.73368702]
[1644547803789,47.28947347,104.39,104.32,7.73368702]
[1644547804589,47.28947347,104.39,104.32,1.73368702]
[1644547804790,47.28947347,104.39,104.3,29.5906]
[1644547804991,56.92847347,104.39,104.3,4.791]
[1644547805190,71.31257347,104.39,104.3,4.791]
[1644547805791,71.31257347,104.39,104.3,5.041]
[1644547806091,35.98765239,104.37,104.3,10.791]
[1644547806313,50.37555239,104.37,104.3,10.791]
[1644547806914,50.37555239,104.37,104.3,4.791]
[1644547808214,63.17473106,104.35,104.3,4.791]
[1644547808414,48.78483106,104.35,104.3,4.791]
[1644547808814,48.78483106,104.35,104.31,1.73893925]
[1644547809818,48.78483106,104.35,104.28,46.60363758]
[1644547810016,48.78483106,104.35,104.28,12.78093925]
[1644547811017,48.78483106,104.35,104.29,44.59886803]
[1644547811418,48.78483106,104.35,104.3,1.73893925]
[1644547811920,4.793,104.39,104.3,1.98893925]
[1644547812117,19.675,104.4,104.31,4.791]
[1644547812319,5.291,104.4,104.31,25.4227]
[1644547812521,11.291,104.4,104.31,25.4227]
[1644547812718,5.291,104.4,104.32,1.73893925]
[1644547812920,5.291,104.4,104.33,15.83059522]
[1644547813118,0.5,104.4,104.33,26.96059522]
[1644547813319,0.5,104.4,104.34,1.73893925]
[1644547813519,0.5,104.4,104.35,44.21596339]
[1644547813718,0.5,104.4,104.35,59.80106339]
[1644547813918,0.5,104.4,104.36,1.73893925]
[1644547814118,0.5,104.4,104.37,16.21249986]
[1644547814319,0.5,104.4,104.38,6.06439994]
[1644547814521,0.5,104.4,104.38,7.80333919]
[1644547814719,0.5,104.4,104.39,1.73893925]
[1644547815119,6.0,104.46,104.39,1.73893925]
[1644547815320,46.59199522,104.46,104.39,2.01293925]
[1644547815518,46.59199522,104.46,104.39,0.024]
[1644547815719,46.59199522,104.46,104.37,1.76293925]
[1644547815919,46.59199522,104.46,104.37,0.024]
[1644547815920,59.95321676,104.46,104.37,0.024]
[1644547816119,59.95321676,104.46,104.32,63.6899]
[1644547816419,59.95321676,104.46,104.33,35.67003132]
[1644547816620,48.7712,104.45,104.34,22.8032]
[1644547816821,47.43226175,104.44,104.35,19.51643193]
[1644547817030,42.64326175,104.44,104.36,0.024]
[1644547817322,45.15017002,104.42,104.36,0.024]
[1644547817522,45.15017002,104.42,104.34,22.8032]
[1644547817722,4.789,104.41,104.34,22.8032]
[1644547817923,4.789,104.41,104.34,23.0532]
[1644547818422,36.49995303,104.4,104.34,23.0532]
[1644547818623,36.49995303,104.4,104.34,0.25]
[1644547819022,36.49995303,104.4,104.33,0.024]
[1644547820526,14.38,104.42,104.33,0.024]
[1644547820725,6.0,104.42,104.33,20.93196861]
[1644547820926,6.0,104.42,104.34,0.024]
[1644547821125,19.1682,104.44,104.34,0.024]
[1644547821326,25.1682,104.44,104.34,0.024]
[1644547821528,43.34026995,104.43,104.34,6.97452734]
[1644547821728,37.03084998,104.41,104.35,0.024]
[1644547822128,4.789,104.43,104.35,0.024]
[1644547822929,4.789,104.43,104.35,16.13896861]
[1644547823127,47.77678193,104.47,104.37,44.45226597]
[1644547823327,4.788,104.46,104.38,0.024]
[1644547823527,4.788,104.47,104.38,1.76306861]
[1644547823726,4.787,104.48,104.39,1.76306861]
[1644547823927,4.787,104.48,104.4,0.024]
[1644547824129,4.787,104.48,104.4,1.76306861]
[1644547824328,45.50084936,104.47,104.41,10.68619728]
[1644547824830,45.50084936,104.47,104.41,12.67526589]
[1644547825029,45.50084936,104.47,104.42,1.73906861]
[1644547825229,45.3821,104.49,104.42,1.73906861]
[1644547825429,45.3821,104.49,104.42,2.01306861]
[1644547825629,51.3821,104.49,104.42,2.01306861]
[1644547826028,51.3821,104.49,104.42,0.024]
[1644547826231,45.54097577,104.48,104.42,0.25]
[1644547826431,45.54097577,104.48,104.42,0.274]
[1644547826630,45.54097577,104.48,104.42,0.25]
[1644547827433,45.54097577,104.48,104.41,10.96019728]
[1644547827932,45.54097577,104.48,104.42,1.73906861]
[1644547828234,45.54097577,104.48,104.42,1.98906861]
[1644547828635,45.3821,104.49,104.43,42.63218237]
[1644547828834,14.3698,104.5,104.43,42.88218237]
[1644547829033,14.3698,104.5,104.43,42.90618237]
[1644547829233,20.3698,104.5,104.43,42.90618237]
[1644547829634,46.35638247,104.49,104.43,42.90618237]
[1644547829833,46.35638247,104.49,104.43,42.88218237]
[1644547830536,6.0,104.5,104.43,42.63218237]
[1644547830837,20.49252983,104.52,104.43,44.64495077]
[1644547831035,6.0,104.51,104.43,44.64495077]
[1644547831535,100.33901751,104.53,104.43,50.64495077]
[1644547831737,6.0,104.53,104.43,65.01035077]
[1644547831939,6.12552983,104.54,104.44,11.13]
[1644547832136,1.34052983,104.55,104.45,0.024]
[1644547832335,7.34052983,104.55,104.45,12.89273512]
[1644547832538,1.34052983,104.55,104.46,0.024]
[1644547832738,7.34052983,104.55,104.46,16.12073512]
[1644547832935,1.34052983,104.56,104.47,14.245016]
[1644547833135,6.12452983,104.56,104.47,14.245016]
[1644547833337,6.12452983,104.56,104.47,20.495016]
[1644547833537,12.12452983,104.56,104.47,20.495016]
[1644547833836,10.784,104.56,104.47,20.495016]
[1644547834136,10.784,104.56,104.47,36.912016]
[1644547834338,4.784,104.56,104.48,1.73873512]
[1644547834538,6.12352983,104.59,104.49,4.783]
[1644547834738,6.0,104.59,104.49,17.38]
[1644547834937,6.12352983,104.6,104.5,6.52073512]
[1644547835141,53.8989,104.61,104.51,42.63218237]
[1644547835142,36.01195211,104.57,104.51,42.63218237]
[1644547835339,36.01195211,104.57,104.51,42.88218237]
[1644547836137,36.01195211,104.57,104.51,0.25]
[1644547836539,36.01195211,104.57,104.49,11.032]
[1644547837042,36.01195211,104.57,104.49,48.13527503]
[1644547837240,36.01195211,104.57,104.49,42.13527503]
[1644547837540,36.01195211,104.57,104.49,43.87401015]
[1644547838343,36.01195211,104.57,104.49,4.782]
[1644547838641,6.12352983,104.56,104.49,4.782]
[1644547839042,2.23122154,104.55,104.44,24.1229]
[1644547839240,44.8175725,104.53,104.45,37.20639735]
[1644547839440,4.784,104.52,104.45,37.20639735]
[1644547839640,59.1822725,104.53,104.45,37.20639735]
[1644547839840,65.1822725,104.53,104.45,37.45639735]
[1644547841145,65.1822725,104.53,104.45,0.25]
[1644547841349,65.1822725,104.53,104.44,30.3729]
[1644547842146,65.1822725,104.53,104.44,30.1229]
[1644547842351,67.41349404,104.53,104.43,23.9617]
[1644547842647,14.368,104.51,104.44,0.024]
[1644547842846,14.368,104.51,104.41,24.3714]
[1644547842847,4.784958,104.5,104.42,0.024]
[1644547843251,48.27651142,104.5,104.42,0.024]
[1644547843649,54.27651142,104.5,104.42,0.024]
[1644547843846,68.64481142,104.5,104.42,0.024]
[1644547844048,68.64481142,104.5,104.39,4.785]
[1644547844049,4.785,104.49,104.4,0.024]
[1644547844948,37.71967592,104.48,104.4,44.76514626]
[1644547845348,37.71967592,104.48,104.4,45.01514626]
[1644547845547,37.71967592,104.48,104.4,0.274]
[1644547845850,52.09177592,104.48,104.4,0.274]
[1644547846247,52.09177592,104.48,104.4,0.024]
[1644547846447,52.09177592,104.48,104.4,44.8572023]
[1644547846847,52.09177592,104.48,104.4,45.1072023]
[1644547848174,52.09177592,104.48,104.4,0.274]
[1644547848376,52.09177592,104.48,104.4,0.024]
[1644547849173,52.09177592,104.48,104.4,36.79429114]
[1644547849373,52.09177592,104.48,104.4,37.04429114]
[1644547850779,58.09177592,104.48,104.4,37.04429114]
[1644547853183,41.33990303,104.46,104.4,37.04429114]
[1644547853380,41.33990303,104.46,104.4,0.25]
[1644547853784,41.33990303,104.46,104.39,0.024]
[1644547853982,41.33990303,104.46,104.38,28.4672]
[1644547854381,41.33990303,104.46,104.39,42.48705767]
[1644547854583,47.33990303,104.46,104.39,42.51105767]
[1644547854782,47.33990303,104.46,104.39,42.76105767]
[1644547855787,41.33990303,104.46,104.39,42.76105767]
[1644547858295,41.33990303,104.46,104.39,48.76105767]
[1644547858487,41.33990303,104.46,104.39,42.76105767]
[1644547858889,47.33990303,104.46,104.39,42.76105767]
[1644547859093,41.33990303,104.46,104.39,42.76105767]
[1644547859290,47.33990303,104.46,104.39,42.76105767]
[1644547859490,41.33990303,104.46,104.39,42.76105767]
[1644547860291,47.33990303,104.46,104.39,42.76105767]
[1644547860791,41.33990303,104.46,104.39,42.76105767]
[1644547860993,47.33990303,104.46,104.39,42.76105767]
[1644547861192,41.33990303,104.46,104.39,42.76105767]
[1644547863495,19.1601,104.48,104.39,42.76105767]
[1644547863698,6.0,104.48,104.4,0.024]
[1644547863900,1.34052983,104.51,104.41,15.917]
[1644547864098,6.0,104.5,104.41,17.65573512]
[1644547864295,6.0,104.5,104.41,23.90573512]
[1644547864497,6.0,104.5,104.42,14.3901407]
[1644547864697,49.49827929,104.51,104.43,14.3633]
[1644547864896,49.49827929,104.51,104.44,42.48705767]
[1644547865101,44.71327929,104.51,104.44,44.22579279]
[1644547865296,44.71327929,104.51,104.44,44.47579279]
[1644547866997,26.28062983,104.52,104.44,44.47579279]
[1644547867198,1.34052983,104.52,104.44,53.82005767]
[1644547867398,1.34052983,104.53,104.44,155.40005767]
[1644547867599,1.34052983,104.53,104.45,12.86873512]
[1644547867798,1.34052983,104.53,104.45,19.11873512]
[1644547867998,42.94993798,104.54,104.46,14.3901407]
[1644547868398,42.94993798,104.54,104.46,20.6401407]
[1644547868597,42.94993798,104.54,104.46,31.7701407]
[1644547871409,42.94993798,104.54,104.46,36.5541407]
[1644547872812,42.94993798,104.54,104.46,34.81540558]
[1644547873110,41.60940815,104.54,104.46,34.81540558]
[1644547873312,41.60940815,104.54,104.46,49.49230558]
[1644547874127,6.12552983,104.55,104.46,49.49230558]
[1644547874326,1.34052983,104.55,104.46,49.49230558]
[1644547874529,1.34052983,104.56,104.46,74.3065407]
[1644547875129,36.5253826,104.55,104.46,74.3065407]
[1644547875928,1.34052983,104.56,104.46,74.3065407]
[1644547876130,1.34052983,104.56,104.46,84.1515407]
[1644547876528,53.10662983,104.57,104.46,84.1515407]
[1644547876730,54.32262983,104.57,104.47,95.58]
[1644547876929,94.8887749,104.57,104.48,148.62930099]
[1644547877129,94.8887749,104.57,104.48,143.84630099]
[1644547877329,47.9066749,104.57,104.49,4.783]
[1644547877533,46.56614507,104.57,104.5,18.00216226]
[1644547877731,40.56614507,104.57,104.5,24.00216226]
[1644547877931,40.56614507,104.57,104.5,24.25216226]
[1644547880137,6.12352983,104.59,104.5,24.25216226]
[1644547881041,1.34052983,104.58,104.49,23.1526]
[1644547881236,14.3592,104.56,104.49,6.25]
[1644547881636,20.3592,104.56,104.47,24.3297]
[1644547881837,4.784,104.55,104.46,4.782]
[1644547882038,36.55097371,104.54,104.46,49.82818748]
[1644547882839,36.55097371,104.54,104.46,43.82818748]
[1644547883037,36.55097371,104.54,104.46,45.8169226]
[1644547883237,36.55097371,104.54,104.46,51.8169226]
[1644547884438,36.55097371,104.54,104.46,45.8169226]
[1644547885138,36.55097371,104.54,104.46,51.8169226]
[1644547885540,42.55097371,104.54,104.46,45.8169226]
[1644547885741,36.55097371,104.54,104.46,45.8169226]
[1644547885941,50.91267371,104.54,104.46,51.5669226]
[1644547886141,58.25320354,104.54,104.46,4.782]
[1644547886439,4.784,104.53,104.45,24.7048]
[1644547886740,4.784,104.53,104.45,30.7048]
[1644547887039,6.12452983,104.53,104.45,24.7048]
[1644547887240,42.58405661,104.52,104.44,23.153]
[1644547887440,47.22150831,104.5,104.44,23.153]
[1644547888546,47.22150831,104.5,104.42,22.6565]
[1644547888744,69.63360831,104.5,104.42,6.0]
[1644547888945,4.785,104.49,104.42,6.0]
[1644547889146,4.785,104.49,104.39,33.8692]
[1644547889345,23.6361,104.49,104.4,4.787]
[1644547889545,40.05874804,104.48,104.41,44.5380301]
[1644547889746,40.05874804,104.48,104.41,50.5380301]
[1644547890147,40.05874804,104.48,104.41,6.0]
[1644547890347,40.05874804,104.48,104.4,4.787]
[1644547890545,40.05874804,104.48,104.39,23.0842]
[1644547890546,4.787,104.47,104.39,23.0842]
[1644547890746,40.05874804,104.48,104.39,23.0842]
[1644547891347,40.05874804,104.48,104.4,44.7885556]
[1644547891746,14.3719,104.47,104.4,45.0385556]
[1644547891945,38.56237243,104.46,104.4,45.0385556]
[1644547894246,14.3719,104.47,104.4,45.0385556]
[1644547894452,28.4231,104.49,104.4,45.0385556]
[1644547894647,14.3704,104.48,104.4,45.0385556]
[1644547894849,14.3704,104.48,104.4,49.8255556]
[1644547895249,61.56240834,104.48,104.4,49.8255556]
[1644547895547,23.6361,104.49,104.4,49.8255556]
[1644547895748,23.6361,104.49,104.4,57.56429072]
[1644547896049,23.6361,104.49,104.4,55.8255556]
[1644547896251,23.6361,104.49,104.4,49.8255556]
[1644547896450,50.99610939,104.48,104.4,49.8255556]
[1644547896650,50.99610939,104.48,104.4,45.0385556]
[1644547897851,65.36640939,104.48,104.4,45.0385556]
[1644547898050,71.36640939,104.48,104.4,45.0385556]
[1644547898450,71.36640939,104.48,104.4,0.25]
[1644547898650,71.36640939,104.48,104.39,23.3342]
[1644547899554,71.36640939,104.48,104.39,61.48478602]
[1644547901757,71.36640939,104.48,104.39,23.0842]
[1644547902563,71.36640939,104.48,104.38,23.6631]
[1644547902960,71.36640939,104.48,104.38,70.42783435]
[1644547903157,71.36640939,104.48,104.38,70.67783435]
[1644547903358,71.36640939,104.48,104.38,72.41656947]
[1644547903562,81.71840939,104.48,104.38,72.41656947]
[1644547908860,83.05893922,104.48,104.38,72.41656947]
[1644547909061,83.05893922,104.48,104.38,25.65183512]
[1644547909963,83.05893922,104.48,104.38,70.30135362]
[1644547911865,1.34052983,104.47,104.38,70.30135362]
[1644547912065,14.3744,104.45,104.38,25.65183512]
[1644547912266,14.3744,104.45,104.38,2.01273512]
[1644547913065,41.20217696,104.44,104.38,41.0463056]
[1644547913466,55.57807696,104.44,104.38,1.76273512]
[1644547913667,55.57807696,104.44,104.38,0.024]
[1644547913867,67.02107696,104.44,104.36,26.49343512]
[1644547914271,71.81007696,104.44,104.36,26.49343512]
[1644547914668,73.15060679,104.44,104.36,33.62574313]
[1644547915269,67.02107696,104.44,104.36,33.62574313]
[1644547915469,68.36160679,104.44,104.36,33.62574313]
[1644547915968,74.36160679,104.44,104.36,0.024]
[1644547916169,85.49160679,104.44,104.36,0.024]
[1644547916367,14.3823,104.41,104.36,0.024]
[1644547916568,14.3823,104.41,104.34,0.024]
[1644547916772,41.7425,104.41,104.32,0.024]
[1644547916970,47.66559772,104.4,104.34,1.73886291]
[1644547917269,47.66559772,104.4,104.34,2.01286291]
[1644547917471,47.66559772,104.4,104.34,1.73886291]
[1644547917676,47.66559772,104.4,104.34,0.25]
[1644547917869,47.66559772,104.4,104.33,0.024]
[1644547918070,72.39959772,104.4,104.33,0.024]
[1644547918269,72.39959772,104.4,104.32,57.21920388]
[1644547919472,77.19059772,104.4,104.32,52.42920388]
[1644547920274,77.19059772,104.4,104.32,7.73886291]
[1644547920471,77.19059772,104.4,104.32,6.0]
[1644547920671,77.19059772,104.4,104.3,36.48626291]
[1644547920871,72.39959772,104.4,104.3,36.48626291]
[1644547921273,72.39959772,104.4,104.31,46.0328467]
[1644547921676,72.39959772,104.4,104.31,52.2828467]
[1644547921975,72.39959772,104.4,104.31,54.02170961]
[1644547923277,78.39959772,104.4,104.31,54.02170961]
[1644547924776,83.19059772,104.4,104.31,54.02170961]
[1644547927081,78.46814409,104.4,104.31,54.02170961]
[1644547927582,78.46814409,104.4,104.31,53.77170961]
[1644547927782,78.46814409,104.4,104.31,54.02170961]
[1644547927983,73.67714409,104.4,104.31,54.02170961]
[1644547928580,73.67714409,104.4,104.31,76.68480961]
[1644547931006,67.67714409,104.4,104.31,76.68480961]
[1644547931307,41.7406,104.41,104.31,91.06640961]
[1644547931508,22.5702,104.41,104.32,4.791]
[1644547931908,22.5702,104.41,104.33,1.73886291]
[1644547932107,24.1629,104.43,104.34,4.79]
[1644547932309,65.63918619,104.43,104.34,5.04]
[1644547932510,71.63918619,104.43,104.35,14.09093309]
[1644547932914,71.63918619,104.43,104.36,1.73886291]
[1644547933112,71.63918619,104.43,104.37,39.75383587]
[1644547933310,71.63918619,104.43,104.37,40.00383587]
[1644547933714,86.01588619,104.43,104.37,40.00383587]
[1644547933912,86.01588619,104.43,104.37,41.74269878]
[1644547934313,80.01588619,104.43,104.37,41.74269878]
[1644547934914,38.5396,104.43,104.37,47.74269878]
[1644547935814,75.90351944,104.43,104.37,47.74269878]
[1644547937517,75.90351944,104.43,104.37,41.74269878]
[1644547937718,75.90351944,104.43,104.37,1.98886291]
[1644547938419,75.90351944,104.43,104.36,0.024]
[1644547938619,62.5879007,104.41,104.36,0.024]
[1644547938819,4.789,104.4,104.35,4.789]
[1644547939420,4.789,104.4,104.35,6.52786291]
[1644547939621,4.789,104.4,104.35,4.789]
[1644547939821,47.69787376,104.39,104.35,4.789]
[1644547940923,47.69787376,104.39,104.34,41.06238153]
[1644547941321,47.69787376,104.39,104.34,0.25]
[1644547941520,47.69787376,104.39,104.34,1.98886291]
[1644547942023,47.69787376,104.39,104.34,1.73886291]
[1644547942222,62.07997376,104.39,104.33,23.2889]
[1644547942421,68.07997376,104.39,104.33,23.2889]
[1644547942621,68.07997376,104.39,104.33,0.024]
[1644547942821,68.07997376,104.39,104.31,0.024]
[1644547943022,4.791,104.38,104.31,0.024]
[1644547943225,4.791,104.38,104.3,23.3018]
[1644547943423,23.4296,104.38,104.3,23.3018]
[1644547943620,36.71820696,104.37,104.3,23.3018]
[1644547943827,36.71820696,104.37,104.3,23.5518]
[1644547944722,14.3864,104.36,104.3,23.5518]
[1644547944923,40.03952131,104.35,104.3,28.3438]
[1644547945122,40.03952131,104.35,104.3,28.3198]
[1644547945322,40.03952131,104.35,104.3,23.5278]
[1644547947522,40.03952131,104.35,104.3,23.2778]
[1644547947724,65.21902131,104.35,104.28,28.6126]
[1644547947924,65.21902131,104.35,104.28,10.816]
[1644547948125,76.34902131,104.35,104.28,0.024]
[1644547948326,99.66302131,104.35,104.28,0.024]
[1644547948527,101.00355114,104.35,104.28,0.024]
[1644547948724,96.21155114,104.35,104.25,0.024]
[1644547949926,103.31855114,104.35,104.25,0.024]
[1644547952337,6.13352983,104.34,104.26,0.024]
[1644547952537,14.3972,104.31,104.26,0.024]
[1644547952741,4.793,104.3,104.23,0.024]
[1644547952938,4.793,104.3,104.22,22.7306]
[1644547953138,42.49238955,104.29,104.22,22.7306]
[1644547953742,42.49238955,104.29,104.22,28.7306]
[1644547954240,4.793,104.3,104.22,28.9806]
[1644547954443,11.13,104.33,104.23,1.73886291]
[1644547954642,11.13,104.33,104.23,1.76286291]
[1644547954941,11.13,104.33,104.24,0.024]
[1644547955342,42.94217538,104.32,104.24,26.69586291]
[1644547955544,57.33537538,104.32,104.25,0.024]
[1644547955743,63.33537538,104.32,104.25,19.11533589]
[1644547955943,63.33537538,104.32,104.25,19.36533589]
[1644547956365,63.33537538,104.32,104.25,21.1041988]
[1644547957866,63.33537538,104.32,104.25,20.8541988]
[1644547958067,63.33537538,104.32,104.25,21.1041988]
[1644547958267,63.33537538,104.32,104.25,20.8541988]
[1644547958469,63.33537538,104.32,104.25,21.1041988]
[1644547960470,63.33537538,104.32,104.25,19.36533589]
[1644547960873,63.33537538,104.32,104.25,19.11533589]
[1644547962473,63.33537538,104.32,104.25,0.024]
[1644547965279,6.0,104.32,104.25,1.76286291]
[1644547965681,22.8819,104.33,104.25,8.01286291]
[1644547965880,22.8819,104.33,104.26,4.793]